bitfinex/quotes_ETHUSD_20251217
["timestamp","ask_amount","ask_price","bid_price","bid_amount"]
[1765985749942,2.1715,2998.1,2996.8,1.01822667]
[1765985750141,0.44715542,2998.0,2996.8,1.01822667]
[1765985750376,0.405504,2997.8,2996.7,0.46438023]
[1765985750585,2.577004,2998.1,2996.8,0.547]
[1765985750792,0.8715,2997.9,2996.8,0.547]
[1765985751081,3.3350402,2998.5,2997.0,4.2407]
[1765985751289,0.405504,2998.3,2997.1,1.25251802]
[1765985751491,0.405504,2998.3,2996.5,3.3382185]
[1765985751492,4.6201,2998.0,2996.5,0.001]
[1765985751656,5.025604,2997.6,2996.6,0.001]
[1765985751860,0.405504,2997.4,2996.6,0.001]
[1765985752058,4.6201,2997.2,2996.6,0.001]
[1765985752245,4.6201,2997.0,2995.5,0.001]
[1765985752447,0.405504,2996.4,2993.5,0.26972432]
[1765985752765,4.6201,2995.8,2994.3,2.3501]
[1765985752973,2.1715,2995.6,2992.7,0.09946785]
[1765985753177,4.6201,2994.6,2992.8,4.4046]
[1765985753487,2.1715,2994.5,2993.0,2.3501]
[1765985753650,4.6201,2994.7,2992.9,0.549]
[1765985753651,2.577004,2994.2,2992.9,0.549]
[1765985753851,6.7916,2993.9,2992.6,0.549]
[1765985754051,4.6201,2993.7,2992.2,1.2]
[1765985754279,0.04165142,2993.6,2992.2,1.2]
[1765985754481,0.04165142,2993.8,2992.3,7.0995]
[1765985754688,0.04165142,2993.7,2992.5,2.3501]
[1765985754860,12.366,2992.5,2989.0,1.6927639]
[1765985755060,0.50603165,2993.8,2989.9,1.67061153]
[1765985755061,2.21315142,2992.4,2989.9,1.67061153]
[1765985755263,2.21315142,2992.4,2990.4,7.0995]
[1765985755580,0.959504,2992.3,2989.6,6.68985816]
[1765985755746,2.1715,2991.8,2990.0,3.34437228]
[1765985755958,2.1715,2991.6,2989.3,4.7494]
[1765985756164,0.405504,2991.4,2989.4,0.554]
[1765985756364,16.386,2990.9,2988.8,0.09946785]
[1765985756565,4.6201,2990.5,2988.8,0.09946785]
[1765985756760,4.6201,2990.1,2988.8,0.09946785]
[1765985757064,0.46438023,2991.7,2989.8,1.63058972]
[1765985757376,4.6201,2991.5,2989.9,0.555]
[1765985757594,3.08303565,2991.4,2989.9,1.0501]
[1765985757764,0.46438023,2990.8,2989.8,0.556]
[1765985757963,0.405504,2990.6,2989.5,0.556]
[1765985758172,7.25598023,2990.8,2989.2,4.7494]
[1765985758173,0.04165142,2990.5,2989.2,4.7494]
[1765985758378,0.04165142,2990.8,2989.3,5.3054]
[1765985758594,0.04165142,2990.7,2989.1,4.7494]
[1765985758794,0.04165142,2991.0,2989.5,4.7494]
[1765985758997,0.405504,2990.9,2989.5,4.7494]
[1765985759161,10.02841383,2991.5,2989.1,0.001]
[1765985759162,0.04165142,2990.8,2989.8,6.68931706]
[1765985759369,0.46438023,2991.5,2989.9,4.7494]
[1765985759664,0.46438023,2991.2,2990.0,0.556]
[1765985759872,0.04165142,2991.1,2990.1,6.6887395]
[1765985760066,6.72704835,2991.6,2989.9,0.80940117]
[1765985760278,0.405504,2991.2,2989.8,8.09408565]
[1765985760486,2.1715,2990.9,2989.2,2.3501]
[1765985760705,0.04165142,2990.8,2989.4,8.09453226]
[1765985760871,0.50603165,2991.5,2990.0,3.3444816]
[1765985761219,0.50603165,2991.5,2989.5,0.556]
[1765985761220,2.1715,2991.3,2989.5,4.7494]
[1765985761518,2.1715,2990.9,2989.1,0.001]
[1765985761664,2.1715,2990.6,2989.2,0.557]
[1765985762003,2.1715,2991.3,2989.3,9.33074558]
[1765985762165,0.04165142,2991.9,2989.6,4.7494]
[1765985762362,4.6201,2991.7,2989.9,2.3501]
[1765985762575,0.04165142,2991.6,2989.4,2.3501]
[1765985762779,2.577004,2990.9,2989.3,2.3501]
[1765985763018,2.577004,2990.9,2988.1,8.86636535]
[1765985763019,4.6201,2990.4,2988.1,8.86636535]
[1765985763314,0.405504,2990.2,2989.2,0.558]
[1765985763494,0.04165142,2990.1,2988.8,0.558]
[1765985763693,0.405504,2990.4,2988.8,3.90375515]
[1765985763894,5.025604,2990.2,2988.7,1.0511]
[1765985764097,0.46438023,2989.8,2988.4,0.558]
[1765985764407,5.025604,2988.9,2986.4,4.7494]
[1765985764606,0.405504,2988.6,2987.0,4.7494]
[1765985764808,2.1715,2989.1,2987.4,4.7494]
[1765985764809,2.63588023,2989.1,2987.4,4.7494]
[1765985765104,0.04165142,2989.0,2987.7,4.7494]
[1765985765411,0.405504,2989.2,2987.8,1.92057654]
[1765985765596,4.6201,2988.4,2987.4,0.09946785]
[1765985765905,4.6201,2988.4,2986.3,3.94854814]
[1765985765906,30.46438023,2988.0,2986.3,0.69946785]
[1765985766105,2.1715,2987.6,2986.4,3.3484485]
[1765985766282,0.04165142,2987.5,2986.3,0.6]
[1765985766604,5.1316,2987.4,2986.3,0.6]
[1765985766819,2.2712,2987.6,2986.3,0.6]
[1765985766820,0.04165142,2987.3,2986.3,0.6]
[1765985766973,2.2712,2986.7,2986.3,0.6]
[1765985767168,2.2712,2986.4,2985.1,3.34996156]
[1765985767376,2.2712,2986.0,2985.0,0.56]
[1765985767574,5.1316,2985.6,2982.8,5.3314]
[1765985767775,0.56,2986.1,2982.5,5.3314]
[1765985767776,5.1316,2984.8,2982.5,5.3314]
[1765985767998,3.34716829,2987.6,2984.8,2.1644]
[1765985768197,5.1316,2989.0,2986.0,0.46438023]
[1765985768408,5.1316,2989.2,2986.3,10.50040027]
[1765985768585,0.564,2989.5,2988.6,0.09946785]
[1765985768586,5.7523,2989.5,2988.6,0.09946785]
[1765985768784,5.1883,2989.3,2988.6,0.09946785]
[1765985768983,5.1883,2989.1,2988.6,0.09946785]
[1765985769184,5.1883,2989.1,2987.0,0.46438023]
[1765985769512,5.1883,2989.1,2987.6,5.1959]
[1765985769683,5.1883,2989.1,2987.7,1.03038023]
[1765985769886,12.21148049,2989.5,2987.4,0.09946785]
[1765985770086,2.2769,2988.7,2987.4,0.09946785]
[1765985770419,2.2769,2989.8,2988.0,5.1959]
[1765985770725,5.515,2989.7,2988.1,0.566]
[1765985770904,2.8901,2990.5,2988.2,5.1793]
[1765985771102,8.4051,2990.5,2988.6,1.6866372]
[1765985771328,2.3241,2989.9,2987.8,5.1793]
[1765985771486,0.46438023,2989.3,2987.7,6.69411252]
[1765985771680,7.8391,2989.4,2987.8,2.7886]
[1765985771919,5.515,2989.1,2987.8,0.567]
[1765985772119,0.567,2989.7,2987.8,2.2216]
[1765985772120,0.46438023,2989.4,2987.8,2.2216]
[1765985772318,0.46438023,2989.4,2987.4,0.09946785]
[1765985772319,5.515,2988.5,2987.4,0.09946785]
[1765985772522,0.567,2989.1,2982.2,10.0]
[1765985772523,30.0,2988.2,2982.2,10.0]
[1765985772698,2.3241,2986.6,2982.4,5.1793]
[1765985772898,2.3241,2986.2,2984.1,8.86636535]
[1765985773095,7.8391,2986.0,2984.2,5.1793]
[1765985773316,2.3241,2985.5,2983.2,5.1793]
[1765985773621,0.577,2985.4,2983.2,1.69462752]
[1765985773786,0.577,2985.5,2983.6,5.1793]
[1765985774105,2.3241,2985.4,2983.5,6.7035361]
[1765985774308,5.515,2984.5,2982.6,5.1793]
[1765985774514,0.577,2985.1,2984.1,0.09044772]
[1765985774767,0.577,2985.1,2983.9,0.09044772]
[1765985775088,0.577,2985.1,2983.8,5.1793]
[1765985775290,2.3241,2984.7,2983.4,3.3518804]
[1765985775523,2.3241,2984.7,2982.7,3.44304485]
[1765985775524,30.0,2984.5,2983.2,0.09044772]
[1765985775731,5.515,2983.2,2980.8,1.86119792]
[1765985776023,2.3241,2982.4,2981.0,3.35457548]
[1765985776219,2.3241,2982.4,2981.0,6.70915448]
[1765985776542,3.35175432,2983.6,2981.0,6.70915448]
[1765985776543,2.3241,2983.1,2981.3,5.1793]
[1765985776694,2.3241,2983.1,2981.5,5.1793]
[1765985776890,0.579,2983.1,2982.7,0.001]
[1765985777093,7.8391,2984.3,2982.7,0.001]
[1765985777305,7.8391,2984.1,2982.8,0.51803]
[1765985777505,5.515,2983.7,2982.7,0.001]
[1765985777823,2.3241,2983.8,2982.7,0.001]
[1765985778023,2.3241,2983.5,2982.7,0.001]
[1765985778227,38.86636535,2982.9,2980.8,5.1793]
[1765985778392,5.515,2982.5,2980.8,1.68719922]
[1765985778611,5.515,2982.7,2980.8,5.1793]
[1765985778912,0.405504,2983.6,2980.8,5.1793]
[1765985778913,3.34912297,2985.9,2981.6,1.60633615]
[1765985779126,5.515,2984.0,2982.0,10.06036215]
[1765985779325,2.3241,2983.5,2981.5,0.001]
[1765985779528,5.515,2982.8,2981.5,0.001]
[1765985779747,8.86636535,2983.2,2981.7,3.35369929]
[1765985779748,2.3241,2982.3,2981.7,3.35369929]
[1765985779930,5.515,2983.9,2981.8,5.6849]
[1765985780260,7.8391,2983.1,2981.7,3.93279146]
[1765985780546,2.3241,2985.1,2982.1,5.1793]
[1765985780837,2.3241,2983.9,2982.9,0.08380122]
[1765985781055,5.515,2983.3,2982.1,0.08380122]
[1765985781206,5.515,2982.6,2981.5,0.08480122]
[1765985781408,8.86636535,2983.8,2980.3,0.08380122]
[1765985781409,5.515,2982.0,2980.5,0.579]
[1765985781651,2.3241,2981.7,2980.6,1.69343808]
[1765985781810,5.515,2984.6,2981.5,0.08380122]
[1765985782012,30.0,2983.3,2981.4,0.08380122]
[1765985782311,0.66614869,2984.4,2982.3,0.08380122]
[1765985782312,5.515,2983.0,2982.3,0.08380122]
[1765985782457,2.3241,2983.4,2982.3,0.08380122]
[1765985782731,30.0,2984.0,2982.2,5.1793]
[1765985782930,30.0,2984.7,2983.9,0.08380122]
[1765985783132,2.3241,2984.8,2982.9,0.58940122]
[1765985783422,2.3241,2984.4,2983.1,0.57687012]
[1765985783631,2.3241,2987.2,2983.7,1.61780939]
[1765985783941,2.3241,2985.1,2983.6,0.08380122]
[1765985784263,20.212,2984.8,2983.6,0.08380122]
[1765985784478,0.58,2985.0,2983.6,0.08380122]
[1765985784831,8.86636535,2986.6,2983.7,6.70307485]
[1765985785052,3.52133645,2987.5,2983.6,0.08380122]
[1765985785053,8.86636535,2986.1,2983.6,0.08380122]
[1765985785261,30.0,2986.4,2984.1,5.1793]
[1765985785262,27.21,2986.4,2984.1,5.1793]
[1765985785562,0.58,2986.0,2984.2,5.1793]
[1765985785770,30.0,2985.9,2983.6,3.4354421]
[1765985785928,5.515,2985.6,2983.6,0.08380122]
[1765985786124,0.46438023,2985.0,2983.6,0.08380122]
[1765985786356,5.515,2984.4,2982.9,0.08380122]
[1765985786528,2.3241,2984.1,2982.9,0.08380122]
[1765985786726,2.3241,2984.7,2983.2,3.3520909]
[1765985786964,2.3241,2984.7,2983.0,0.581]
[1765985787131,0.46438023,2984.7,2982.9,0.08380122]
[1765985787468,2.3241,2984.7,2983.0,5.1793]
[1765985787687,2.3241,2984.8,2983.6,6.70324812]
[1765985787829,3.34769792,2987.2,2983.6,6.70324812]
[1765985787830,5.515,2985.9,2984.7,0.08380122]
[1765985788030,0.581,2986.1,2984.8,5.1793]
[1765985788262,5.517,2986.6,2984.1,0.08380122]
[1765985788263,2.3241,2985.9,2984.1,0.08380122]
[1765985788465,2.3241,2985.7,2984.1,0.08380122]
[1765985788648,7.8391,2985.7,2984.7,3.35040525]
[1765985788848,0.002,2986.6,2984.7,6.70082572]
[1765985789065,0.581,2986.5,2984.8,2.34402138]
[1765985789261,0.581,2986.5,2984.7,3.35032753]
[1765985789262,2.3241,2986.2,2984.7,3.35032753]
[1765985789434,0.581,2986.5,2984.7,3.35032753]
[1765985789435,0.581,2986.5,2984.7,10.05116847]
[1765985789630,8.4201,2986.5,2984.7,6.700748]
[1765985789855,8.4201,2986.5,2984.6,6.70106546]
[1765985790060,8.4201,2986.5,2984.5,5.60016119]
[1765985790061,2.3241,2986.2,2984.5,6.70124864]
[1765985790269,2.78848023,2986.2,2984.5,10.05189363]
[1765985790489,2.3241,2986.2,2984.6,5.1793]
[1765985790689,0.002,2986.6,2985.4,0.7439]
[1765985790875,0.002,2986.6,2985.5,5.1793]
[1765985791077,0.002,2986.6,2985.5,5.9232]
[1765985791257,0.002,2986.6,2985.5,6.5042]
[1765985791599,2.3241,2989.3,2986.5,0.08380122]
[1765985791797,2.3241,2989.3,2987.6,5.1793]
[1765985791968,0.582,2989.9,2988.4,5.1793]
[1765985792289,0.582,2990.3,2988.7,5.1793]
[1765985792493,0.582,2990.3,2988.9,0.7439]
[1765985792868,5.515,2990.2,2988.3,0.7439]
[1765985793071,5.515,2990.1,2988.3,0.7439]
[1765985793268,5.515,2990.1,2988.2,5.1793]
[1765985793269,2.3241,2990.2,2988.4,5.9232]
[1765985793493,0.582,2990.3,2988.8,5.1793]
[1765985793695,0.582,2990.3,2987.8,0.405504]
[1765985793886,2.3241,2990.1,2987.7,6.69411252]
[1765985794083,2.3241,2990.1,2988.2,8.86636535]
[1765985794269,0.582,2990.0,2988.2,8.86636535]
[1765985794599,5.515,2989.7,2987.7,8.86636535]
[1765985794801,5.515,2989.3,2987.1,0.08380122]
[1765985794985,5.515,2989.0,2987.3,3.3474189]
[1765985795296,30.0,2989.1,2987.1,0.08380122]
[1765985795464,7.8391,2989.0,2986.7,8.86636535]
[1765985795669,0.696114,2989.9,2987.9,5.26310122]
[1765985795670,0.582,2989.3,2987.9,5.26310122]
[1765985795970,0.582,2989.3,2987.7,12.29721875]
[1765985795971,3.34537668,2989.2,2987.7,0.08380122]
[1765985796169,6.69075336,2989.2,2987.7,0.08380122]
[1765985796385,3.34470533,2989.8,2987.8,5.1793]
[1765985796583,2.3241,2989.5,2987.9,0.46438023]
[1765985796761,3.10801,2989.4,2988.2,0.09034784]
[1765985796964,0.78391,2989.4,2987.1,0.46438023]
[1765985797164,2.3241,2989.1,2987.6,0.46438023]
[1765985797407,2.3241,2988.9,2987.4,5.1793]
[1765985797608,6.096,2989.0,2987.5,5.1793]
[1765985797609,0.581,2988.8,2987.5,5.1793]
[1765985797808,2.9051,2988.8,2987.2,0.55472807]
[1765985798012,5.67001257,2988.8,2987.2,0.55472807]
[1765985798196,2.3241,2989.7,2988.0,0.09034784]
[1765985798413,5.515,2989.3,2987.2,0.09034784]
[1765985798727,2.3241,2989.0,2987.2,0.09034784]
[1765985798903,0.581,2988.9,2987.2,6.78555762]
[1765985799297,0.581,2988.9,2988.1,0.09034784]
[1765985799495,0.581,2988.9,2987.9,0.09034784]
[1765985799692,2.3241,2988.6,2987.0,0.09034784]
[1765985799918,3.57867727,2988.5,2987.0,0.09034784]
[1765985800122,0.581,2988.4,2987.0,6.78602912]
[1765985800402,2.3241,2989.2,2987.3,5.64368023]
[1765985800606,2.3173,2988.8,2987.1,0.09034784]
[1765985800805,0.581,2989.1,2987.3,0.09034784]
[1765985800806,2.3173,2988.6,2987.3,0.09034784]
[1765985801003,0.581,2988.5,2987.4,4.931]
[1765985801211,0.581,2988.6,2987.0,0.46438023]
[1765985801396,8.476,2988.5,2986.9,0.55472807]
[1765985801788,5.5787,2988.2,2985.2,1.64565083]
[1765985802020,3.3463784,2988.4,2986.8,4.931]
[1765985802228,2.3173,2988.1,2986.6,0.46438023]
[1765985802435,6.6927568,2988.4,2986.6,0.46438023]
[1765985802436,2.3173,2987.7,2986.6,0.09034784]
[1765985802731,11.3696,2988.0,2986.2,0.09034784]
[1765985802732,28.521,2987.4,2986.2,0.09034784]
[1765985803047,1.3696,2988.0,2986.2,0.09034784]
[1765985803048,7.896,2986.9,2986.2,0.09034784]
[1765985803198,5.5787,2986.5,2985.1,0.09034784]
[1765985803535,2.8973,2986.4,2985.1,0.09034784]
[1765985803739,3.7449,2986.4,2985.1,0.09034784]
[1765985803908,3.34862538,2986.3,2985.1,0.09034784]
[1765985804102,3.34771083,2987.2,2985.1,0.09034784]
[1765985804103,5.5787,2987.1,2985.4,8.95671319]
[1765985804328,0.58,2987.0,2985.4,13.88771319]
[1765985804507,0.58,2987.0,2985.5,0.46438023]
[1765985804702,1.28541904,2986.9,2985.5,0.46438023]
[1765985804906,1.28541904,2986.9,2984.5,0.09034784]
[1765985804907,5.5787,2986.7,2984.5,0.09034784]
[1765985805109,13.39101402,2987.1,2984.5,0.09034784]
[1765985805110,5.5787,2988.3,2985.6,0.09034784]
[1765985805336,5.5787,2987.7,2984.8,0.581]
[1765985805637,0.405504,2986.6,2983.7,0.4825]
[1765985805841,0.405504,2986.6,2982.3,0.4835]
[1765985805842,0.405504,2985.9,2982.3,0.4835]
[1765985805999,0.581,2986.5,2982.3,0.4835]
[1765985806000,7.896,2984.3,2982.4,7.60803847]
[1765985806199,5.5787,2984.0,2982.6,8.86636535]
[1765985806399,5.5787,2984.7,2983.1,10.55965769]
[1765985806597,5.5787,2984.7,2983.2,0.582]
[1765985806828,2.3173,2984.6,2983.1,8.86636535]
[1765985807028,5.5787,2984.2,2982.4,0.32110243]
[1765985807330,2.3173,2984.5,2983.2,8.86636535]
[1765985807797,2.3173,2984.5,2983.0,0.581]
[1765985807798,7.896,2986.1,2984.4,1.65290994]
[1765985808000,8.477,2986.1,2984.7,9.33074558]
[1765985808200,8.4762,2986.1,2984.7,9.33074558]
[1765985808421,2.3173,2985.8,2984.4,0.581]
[1765985808730,0.581,2986.1,2984.3,0.46438023]
[1765985808931,0.581,2986.1,2984.8,2.06450161]
[1765985809131,0.581,2986.8,2985.2,8.86636535]
[1765985809428,0.581,2986.7,2984.9,0.46438023]
[1765985809631,0.581,2986.7,2985.3,0.46438023]
[1765985809839,0.17337537,2988.0,2985.7,8.86636535]
[1765985810003,3.43662712,2988.4,2986.4,6.69700667]
[1765985810004,3.43662649,2988.4,2986.4,6.69700667]
[1765985810206,5.5787,2988.2,2986.4,3.34849341]
[1765985810515,5.5787,2988.2,2986.4,10.10756361]
[1765985810823,5.5787,2988.0,2985.9,0.582]
[1765985811025,0.002,2988.6,2987.9,8.86636535]
[1765985811233,7.98834784,2990.3,2988.4,8.86636535]
[1765985811401,0.582,2990.2,2988.4,11.22966535]
[1765985811600,6.1607,2990.2,2988.6,1.7813]
[1765985812046,0.582,2990.2,2989.0,1.87164784]
[1765985812337,0.582,2990.2,2989.2,1.7813]
[1765985812556,0.582,2990.2,2988.7,3.92793636]
[1765985812769,0.582,2990.2,2988.7,7.27387272]
[1765985812922,0.002,2990.3,2989.0,0.405504]
[1765985813126,7.896,2991.3,2989.4,0.09034784]
[1765985813352,0.582,2991.0,2989.4,0.09034784]
[1765985813556,0.582,2991.0,2989.4,0.46438023]
[1765985813725,0.002,2990.2,2989.4,0.46438023]
[1765985813922,0.002,2990.2,2989.9,0.405504]
[1765985814121,8.86636535,2993.6,2989.9,0.405504]
[1765985814122,0.582,2992.3,2990.1,0.405504]
[1765985814321,3.34114425,2993.0,2991.5,8.86636535]
[1765985814322,0.582,2992.2,2991.5,8.86636535]
[1765985814528,0.582,2993.4,2991.6,0.4773]
[1765985814829,0.002,2992.6,2991.6,0.4773]
[1765985815225,0.002,2992.6,2992.0,8.86636535]
[1765985815421,0.002,2992.6,2991.0,1.70570671]
[1765985815660,5.5787,2992.5,2991.0,1.70570671]
[1765985815960,5.5787,2992.3,2991.0,1.61535887]
[1765985816153,5.5787,2991.8,2991.0,1.61535887]
[1765985816662,0.581,2991.7,2990.2,0.405504]
[1765985816866,0.581,2991.7,2990.3,3.4344892]
[1765985817172,0.581,2991.8,2990.3,12.30075726]
[1765985817326,0.581,2992.1,2990.3,8.95671319]
[1765985817528,0.581,2992.1,2990.6,3.34373834]
[1765985817729,0.581,2992.1,2990.6,3.34371557]
[1765985818059,1.4287,2992.1,2990.9,0.09034784]
[1765985818224,1.4287,2992.1,2990.3,8.95671319]
[1765985818225,15.16127073,2992.1,2990.3,0.09034784]
[1765985818428,7.896,2991.8,2990.3,0.09034784]
[1765985818763,0.581,2991.7,2990.3,0.09034784]
[1765985819079,0.46438023,2992.4,2990.7,0.09034784]
[1765985819240,1.17020812,2992.3,2991.0,8.86413436]
[1765985819427,0.002,2992.6,2991.0,0.986504]
[1765985819768,0.002,2992.6,2991.5,10.62970026]
[1765985820007,0.002,2992.6,2991.7,6.68516228]
[1765985820277,0.002,2992.6,2990.9,12.24993652]
[1765985820436,0.002,2992.6,2991.7,0.405504]
[1765985820641,0.002,2992.6,2991.8,10.62970026]
[1765985820992,0.002,2992.6,2991.6,6.68538574]
[1765985820993,0.97256,2995.0,2992.0,0.405504]
[1765985821147,7.25801928,2994.9,2992.0,0.405504]
[1765985821341,5.5787,2994.5,2992.2,0.405504]
[1765985821674,6.67801928,2994.9,2992.2,0.405504]
[1765985821675,7.896,2994.3,2992.4,10.62970026]
[1765985821870,0.581,2994.2,2991.9,0.58]
[1765985822177,7.896,2993.9,2991.7,13.97217979]
[1765985822339,7.896,2995.4,2993.1,10.62970026]
[1765985822539,7.896,2995.2,2993.2,0.405504]
[1765985822767,2.3173,2996.1,2993.7,10.62970026]
[1765985822953,40.01201439,2996.4,2993.7,10.62970026]
[1765985822954,0.582,2996.0,2993.7,10.62970026]
[1765985823156,7.896,2995.7,2993.7,10.62970026]
[1765985823475,0.002,2993.8,2993.7,10.62970026]
[1765985823700,0.002,2993.8,2993.7,11.03520426]
[1765985823893,0.002,2993.8,2992.5,0.405504]
[1765985824041,0.002,2993.8,2992.9,0.09034784]
[1765985824774,0.582,2993.7,2991.8,10.62970026]
[1765985824993,0.582,2993.7,2992.0,0.09034784]
[1765985825189,0.002,2993.8,2992.0,0.09034784]
[1765985825488,0.582,2993.7,2992.6,0.46438023]
[1765985825693,0.002,2993.8,2992.3,0.46438023]
[1765985825872,0.002,2993.8,2992.0,0.09034784]
[1765985826185,10.60304418,2993.7,2992.0,0.09034784]
[1765985826337,5.5787,2993.2,2991.3,0.09034784]
[1765985826545,5.5787,2993.0,2991.3,0.09034784]
[1765985826788,2.3173,2992.7,2991.3,0.09034784]
[1765985827346,7.896,2992.6,2991.3,0.09034784]
[1765985827676,1.3706,2992.5,2991.5,0.09034784]
[1765985827899,1.3706,2992.5,2990.9,0.09034784]
[1765985828183,7.896,2992.1,2990.5,0.09034784]
[1765985828394,10.02606777,2992.2,2990.3,0.09034784]
[1765985828395,5.5787,2991.7,2990.3,0.09034784]
[1765985828691,6.8359,2991.5,2990.4,0.09034784]
[1765985828900,0.46438023,2992.5,2990.7,0.09034784]
[1765985829047,8.036,2993.5,2991.3,0.09034784]
[1765985829244,0.90965044,2993.4,2991.5,10.62970026]
[1765985829441,0.581,2993.3,2991.6,1.3]
[1765985829750,0.581,2993.2,2991.6,1.3]
[1765985830058,2.308,2993.5,2991.6,7.98534118]
[1765985830245,2.308,2993.5,2992.3,0.09034784]
[1765985830447,1.14485475,2993.4,2992.3,0.09034784]
[1765985830668,0.58,2993.3,2992.3,0.09034784]
[1765985830975,0.58,2993.3,2992.1,0.09034784]
[1765985831153,0.58,2993.2,2992.3,0.09034784]
[1765985831361,0.002,2993.8,2992.7,0.09034784]
[1765985831699,5.7319,2996.2,2993.3,10.62970026]
[1765985831845,5.7319,2995.8,2994.0,10.62970026]
[1765985832040,5.7319,2995.8,2994.1,1.298]
[1765985832041,11.38991667,2995.8,2994.1,1.298]
[1765985832279,0.0012,2995.2,2994.1,1.298]
[1765985832644,0.0012,2995.2,2994.0,3.33999188]
[1765985833068,10.002,2997.0,2994.0,6.68000524]
[1765985833272,2.32,2996.8,2994.3,0.405504]
[1765985833469,0.002,2997.0,2995.3,0.7168]
[1765985833672,0.6,2997.1,2995.8,0.7168]
[1765985833882,0.58,2998.1,2996.4,0.1148]
[1765985834052,0.58,2998.0,2996.6,0.1148]
[1765985834366,0.58,2998.5,2997.0,0.1128]
[1765985834546,8.6519,2999.8,2997.7,10.74250026]
[1765985834749,2.32,2999.4,2997.6,0.58]
[1765985835004,0.80519,2999.3,2997.7,10.62970026]
[1765985835179,2.32,3000.0,2997.9,0.405504]
[1765985835366,5.7319,2999.5,2997.1,10.62970026]
[1765985835566,5.7319,2999.1,2997.1,10.62970026]
[1765985835769,5.7319,2999.1,2997.3,0.1128]
[1765985835970,0.58,2999.0,2997.2,10.62970026]
[1765985836146,2.78438023,2998.5,2995.9,10.62970026]
[1765985836348,2.78438023,2998.5,2995.7,0.581]
[1765985836349,8.0519,2998.0,2996.0,0.1128]
[1765985836560,8.0519,2998.0,2996.5,3.33722432]
[1765985836781,0.581,2997.9,2996.2,10.74250026]
[1765985836985,0.74281825,2998.4,2996.2,10.62970026]
[1765985837153,0.46438023,2998.3,2996.4,0.1128]
[1765985837353,2.32,2998.8,2996.9,0.09034784]
[1765985837554,30.0,2999.5,2997.2,1.4128]
[1765985837868,30.0,2999.5,2997.0,0.581]
[1765985837869,2.32,2999.1,2996.9,0.09034784]
[1765985838049,12.32,2998.6,2996.9,0.09034784]
[1765985838253,2.32,2998.2,2996.9,0.09034784]
[1765985838461,30.0,2997.8,2995.9,0.09034784]
[1765985838662,0.405504,2998.3,2994.8,10.7200481]
[1765985838663,2.78438023,2997.4,2994.8,10.7200481]
[1765985838883,2.32,2997.3,2994.8,0.09034784]
[1765985839086,2.78438023,2996.9,2994.8,0.09034784]
[1765985839261,2.78438023,2996.7,2994.8,0.09034784]
[1765985839586,0.46438023,2996.3,2994.4,0.09034784]
[1765985839785,0.46438023,2996.1,2995.0,0.09034784]
[1765985839961,0.58,2996.3,2995.4,0.09034784]
[1765985840160,0.46438023,2996.5,2995.4,0.09034784]
[1765985840360,0.58,2996.7,2995.2,15.56173214]
[1765985840562,0.58,2996.7,2995.2,12.2231481]
[1765985840864,0.46438023,2996.3,2994.9,0.09034784]
[1765985841185,1.67042032,2996.9,2994.6,0.09034784]
[1765985841186,0.46438023,2996.1,2994.6,0.09034784]
[1765985841482,0.46438023,2996.0,2995.0,0.09034784]
[1765985841687,0.09234784,2997.3,2994.8,0.09034784]
[1765985841688,0.58,2995.9,2994.8,0.09034784]
[1765985841885,5.7319,2997.1,2995.4,0.09034784]
[1765985842189,6.19628023,2996.8,2995.4,0.09034784]
[1765985842387,0.58,2996.7,2995.4,0.09034784]
[1765985842685,0.58,2996.6,2995.3,0.09034784]
[1765985842890,0.58,2996.6,2994.8,1.3]
[1765985842891,8.0519,2996.4,2995.4,0.09034784]
[1765985843056,0.46438023,2996.4,2994.6,0.09034784]
[1765985843368,8.6319,2996.3,2994.6,0.09034784]
[1765985843556,1.10443802,2996.6,2995.2,3.33863901]
[1765985843756,0.58,2996.7,2995.7,0.09034784]
[1765985843958,8.0519,2997.4,2996.2,0.09034784]
[1765985844200,0.58,2997.2,2996.2,0.09034784]
[1765985844399,2.78438023,2997.1,2995.7,0.09034784]
[1765985844693,6.67245595,2997.4,2995.9,0.09034784]
[1765985844899,2.32,2996.8,2995.5,0.09034784]
[1765985845080,0.6674456,2997.2,2995.8,0.09034784]
[1765985845277,0.579,2997.1,2995.8,0.09034784]
[1765985845586,2.32,2997.4,2995.8,0.09034784]
[1765985845791,0.58,2997.1,2995.8,0.09034784]
[1765985846084,0.58,2997.1,2996.3,0.09034784]
[1765985846297,0.002,2997.3,2996.5,0.09034784]
[1765985846506,2.32,2998.0,2996.5,0.09034784]
[1765985846666,1.28043802,2998.5,2996.6,1.5011]
[1765985846866,0.002,2998.5,2996.7,1.5011]
[1765985847104,5.7319,2998.3,2996.7,1.5011]
[1765985847263,0.46438023,2998.2,2996.6,2.0801]
[1765985847470,0.581,2998.5,2997.7,0.09034784]
[1765985847975,0.581,2998.5,2997.3,0.09034784]
[1765985848174,0.581,2998.5,2996.6,0.579]
[1765985848175,2.78438023,2998.0,2996.6,0.579]
[1765985848377,0.85743802,2997.9,2996.6,0.579]
[1765985848580,0.579,2997.8,2996.6,0.579]
[1765985848780,0.002,2998.5,2996.6,0.579]
[1765985848781,8.0519,2998.9,2997.3,3.33633603]
[1765985848999,10.62970026,3000.6,2997.6,1.0367]
[1765985849000,8.0519,2999.6,2997.6,1.0367]
[1765985849208,8.0519,3000.1,2997.7,1.0367]
[1765985849380,2.32,2999.4,2997.7,2.24389043]
[1765985849578,2.32,2999.4,2997.7,1.0367]
[1765985849790,0.579,2999.5,2997.8,11.66640026]
[1765985850186,0.002,2999.7,2998.7,0.09034784]